[Event "Late-Titled-Tuesday-Blitz-May-14-2024"]
[Site "Chess.com"]
[Date "2024.05.14"]
[Round "10"]
[White "Veleamater"]
[Black "Boorchess"]
[Result "0-1"]
[WhiteElo "2436"]
[BlackElo "2592"]
[TimeControl "180+1"]
[EndTime "15:55:11 PDT"]
[Termination "Boorchess won by checkmate"]

1. e4 {[%clk 0:02:59.7]} 1... c5 {[%clk 0:02:57.4]} 2. a3 {[%clk 0:02:59.1]}
2... g6 {[%clk 0:02:55.7]} 3. d4 {[%clk 0:02:58.7]} 3... cxd4 {[%clk 0:02:54.3]}
4. c3 {[%clk 0:02:59.4]} 4... Bg7 {[%clk 0:02:51.6]} 5. cxd4 {[%clk 0:02:58.6]}
5... d5 {[%clk 0:02:51.4]} 6. e5 {[%clk 0:02:59.1]} 6... Nc6 {[%clk 0:02:50.8]}
7. b4 {[%clk 0:02:59.3]} 7... Nh6 {[%clk 0:02:50.3]} 8. Bb2 {[%clk 0:02:58.4]}
8... O-O {[%clk 0:02:49.9]} 9. Be2 {[%clk 0:02:57.4]} 9... f6 {[%clk 0:02:49]}
10. Nf3 {[%clk 0:02:55.6]} 10... Be6 {[%clk 0:02:46.8]} 11. O-O {[%clk
0:02:53.6]} 11... fxe5 {[%clk 0:02:41.9]} 12. dxe5 {[%clk 0:02:52.8]} 12... Qc7
{[%clk 0:02:27.2]} 13. Nc3 {[%clk 0:02:47.6]} 13... Rad8 {[%clk 0:02:12.6]} 14.
Nb5 {[%clk 0:02:44.5]} 14... Qb8 {[%clk 0:02:05.6]} 15. Nfd4 {[%clk 0:02:26]}
15... Bc8 {[%clk 0:01:59]} 16. Nxc6 {[%clk 0:02:14.9]} 16... bxc6 {[%clk
0:01:57.4]} 17. Nd4 {[%clk 0:02:15]} 17... Bd7 {[%clk 0:01:52.7]} 18. e6 {[%clk
0:02:06.5]} 18... Be8 {[%clk 0:01:51.4]} 19. Rc1 {[%clk 0:02:05.7]} 19... a5
{[%clk 0:01:43.2]} 20. Qb3 {[%clk 0:01:49]} 20... Qb6 {[%clk 0:01:27.1]} 21.
Rfd1 {[%clk 0:01:27.4]} 21... Rb8 {[%clk 0:01:26.9]} 22. Bc3 {[%clk 0:01:13]}
22... axb4 {[%clk 0:01:24.1]} 23. axb4 {[%clk 0:01:10.8]} 23... c5 {[%clk
0:01:20.4]} 24. Nc2 {[%clk 0:01:07.4]} 24... d4 {[%clk 0:01:06.2]} 25. Be1
{[%clk 0:01:02]} 25... Nf5 {[%clk 0:01:04.4]} 26. Rb1 {[%clk 0:00:53.2]} 26...
Bc6 {[%clk 0:00:53.9]} 27. b5 {[%clk 0:00:51.3]} 27... Ba8 {[%clk 0:00:52.5]}
28. Na3 {[%clk 0:00:49.2]} 28... Nh4 {[%clk 0:00:47.2]} 29. f3 {[%clk
0:00:45.5]} 29... Nf5 {[%clk 0:00:47.2]} 30. Nc4 {[%clk 0:00:44.9]} 30... Qxe6
{[%clk 0:00:47.1]} 31. Bf1 {[%clk 0:00:42.5]} 31... Ne3 {[%clk 0:00:44.6]} 32.
Nxe3 {[%clk 0:00:34.7]} 32... Qxb3 {[%clk 0:00:44.2]} 33. Rxb3 {[%clk
0:00:34.7]} 33... dxe3 {[%clk 0:00:44.5]} 34. Bg3 {[%clk 0:00:31.1]} 34... Bd4
{[%clk 0:00:42.8]} 35. Bc4+ {[%clk 0:00:24.3]} 35... Kg7 {[%clk 0:00:42.4]} 36.
Kf1 {[%clk 0:00:24.7]} 36... e5 {[%clk 0:00:36.7]} 37. Ke2 {[%clk 0:00:23.5]}
37... g5 {[%clk 0:00:32.6]} 38. h3 {[%clk 0:00:22.4]} 38... h5 {[%clk
0:00:31.9]} 39. Ra3 {[%clk 0:00:21.9]} 39... g4 {[%clk 0:00:31.4]} 40. hxg4
{[%clk 0:00:21.5]} 40... hxg4 {[%clk 0:00:31.6]} 41. Ra7+ {[%clk 0:00:21.2]}
41... Kg6 {[%clk 0:00:27.4]} 42. Rf1 {[%clk 0:00:10.9]} 42... gxf3+ {[%clk
0:00:26.1]} 43. gxf3 {[%clk 0:00:10.9]} 43... Rh8 {[%clk 0:00:22.4]} 44. Bd3+
{[%clk 0:00:11.2]} 44... Kf6 {[%clk 0:00:22.5]} 45. f4 {[%clk 0:00:09.3]} 45...
e4 {[%clk 0:00:21.2]} 46. Bc4 {[%clk 0:00:09.2]} 46... Bb7 {[%clk 0:00:16.5]}
47. f5 {[%clk 0:00:07.8]} 47... Rbg8 {[%clk 0:00:14.7]} 48. Rxb7 {[%clk
0:00:05.6]} 48... Rxg3 {[%clk 0:00:14.7]} 49. Rf7+ {[%clk 0:00:05.7]} 49... Ke5
{[%clk 0:00:14.9]} 50. Re7+ {[%clk 0:00:05.4]} 50... Kd6 {[%clk 0:00:15.1]} 51.
Re6+ {[%clk 0:00:05.7]} 51... Kd7 {[%clk 0:00:15.4]} 52. Rxe4 {[%clk 0:00:03.2]}
52... Rg2+ {[%clk 0:00:15.2]} 53. Kf3 {[%clk 0:00:03.1]} 53... Rf2+ {[%clk
0:00:13.4]} 54. Rxf2 {[%clk 0:00:01.6]} 54... exf2 {[%clk 0:00:14.3]} 55. Kg2
{[%clk 0:00:01.6]} 55... Rf8 {[%clk 0:00:11.8]} 56. Be6+ {[%clk 0:00:00.3]}
56... Kd6 {[%clk 0:00:11.8]} 57. Kf1 {[%clk 0:00:00.7]} 57... Ra8 {[%clk
0:00:10.3]} 58. b6 {[%clk 0:00:01.4]} 58... Ra1+ {[%clk 0:00:09.8]} 59. Kg2
{[%clk 0:00:02.1]} 59... f1=Q+ {[%clk 0:00:10.1]} 60. Kg3 {[%clk 0:00:03]} 60...
Qg1+ {[%clk 0:00:10.1]} 61. Kf4 {[%clk 0:00:03.3]} 61... Rf1# {[%clk 0:00:10]}
0-1

[Event "Late-Titled-Tuesday-Blitz-May-14-2024"]
[Site "Chess.com"]
[Date "2024.05.14"]
[Round "10"]
[White "MarceloPlaya"]
[Black "Flaccidmoves"]
[Result "0-1"]
[WhiteElo "2327"]
[BlackElo "2431"]
[TimeControl "180+1"]
[EndTime "15:55:16 PDT"]
[Termination "Flaccidmoves won on time"]

1. e4 {[%clk 0:03:00.9]} 1... g6 {[%clk 0:03:00]} 2. d4 {[%clk 0:02:59.8]} 2...
Bg7 {[%clk 0:03:00.5]} 3. Nc3 {[%clk 0:02:59.8]} 3... d6 {[%clk 0:03:01]} 4. Be3
{[%clk 0:02:59.7]} 4... a6 {[%clk 0:03:01.5]} 5. Qd2 {[%clk 0:02:59.7]} 5... b5
{[%clk 0:03:01.9]} 6. O-O-O {[%clk 0:02:59.7]} 6... Bb7 {[%clk 0:03:02.3]} 7. f3
{[%clk 0:02:59.9]} 7... Nd7 {[%clk 0:03:01.4]} 8. h4 {[%clk 0:02:58.7]} 8... h5
{[%clk 0:03:00.4]} 9. Kb1 {[%clk 0:02:58]} 9... Rc8 {[%clk 0:02:59.2]} 10. d5
{[%clk 0:02:47.6]} 10... c6 {[%clk 0:02:55]} 11. dxc6 {[%clk 0:02:45.6]} 11...
Bxc6 {[%clk 0:02:53.7]} 12. Bd4 {[%clk 0:02:44.5]} 12... Ngf6 {[%clk 0:02:51.3]}
13. Nge2 {[%clk 0:02:37.9]} 13... O-O {[%clk 0:02:47.8]} 14. Nd5 {[%clk
0:02:32.1]} 14... Bxd5 {[%clk 0:02:44.9]} 15. exd5 {[%clk 0:02:28.9]} 15... Nb6
{[%clk 0:02:37.7]} 16. g4 {[%clk 0:02:23.5]} 16... Nc4 {[%clk 0:02:08.6]} 17.
Qd3 {[%clk 0:02:17.3]} 17... hxg4 {[%clk 0:02:01.6]} 18. h5 {[%clk 0:02:12.9]}
18... g5 {[%clk 0:01:40]} 19. h6 {[%clk 0:02:08.4]} 19... Bh8 {[%clk 0:01:39.8]}
20. h7+ {[%clk 0:02:04.9]} 20... Kg7 {[%clk 0:01:39.5]} 21. Ng3 {[%clk
0:02:00.3]} 21... Re8 {[%clk 0:01:34.2]} 22. fxg4 {[%clk 0:01:47.4]} 22... Kf8
{[%clk 0:01:25.9]} 23. Ne4 {[%clk 0:01:29.7]} 23... e5 {[%clk 0:01:21.7]} 24.
dxe6 {[%clk 0:01:27]} 24... Rxe6 {[%clk 0:01:20.9]} 25. Nxg5 {[%clk 0:01:26.2]}
25... Re5 {[%clk 0:01:18.1]} 26. Bxe5 {[%clk 0:01:24.5]} 26... Nxe5 {[%clk
0:01:16.7]} 27. Qxd6+ {[%clk 0:01:18.6]} 27... Qxd6 {[%clk 0:01:16]} 28. Rxd6
{[%clk 0:01:17.8]} 28... Nfxg4 {[%clk 0:01:15.4]} 29. Bh3 {[%clk 0:01:10.2]}
29... Re8 {[%clk 0:00:48.2]} 30. Re1 {[%clk 0:00:52.1]} 30... Nf2 {[%clk
0:00:39.2]} 31. Rxa6 {[%clk 0:00:43.5]} 31... Rd8 {[%clk 0:00:30.8]} 32. Bf5
{[%clk 0:00:37.2]} 32... Nc4 {[%clk 0:00:25.9]} 33. Bd3 {[%clk 0:00:20.5]} 33...
Nxb2 {[%clk 0:00:21.8]} 34. Bxb5 {[%clk 0:00:19.8]} 34... Nfd1 {[%clk 0:00:18]}
35. a4 {[%clk 0:00:18.2]} 35... Nc3+ {[%clk 0:00:17.7]} 36. Kxb2 {[%clk
0:00:18.1]} 36... Nxb5+ {[%clk 0:00:18.4]} 37. Kb3 {[%clk 0:00:18.3]} 37... Nc7
{[%clk 0:00:18.3]} 38. Ra7 {[%clk 0:00:17.6]} 38... Rb8+ {[%clk 0:00:16.3]} 39.
Kc4 {[%clk 0:00:17.1]} 39... Rc8 {[%clk 0:00:16.9]} 40. Rf1 {[%clk 0:00:15.3]}
40... Ne6+ {[%clk 0:00:14.2]} 41. Kb5 {[%clk 0:00:15.3]} 41... Nxg5 {[%clk
0:00:14.8]} 42. a5 {[%clk 0:00:14.5]} 42... Rb8+ {[%clk 0:00:14.3]} 43. Kc6
{[%clk 0:00:13.6]} 43... Kg7 {[%clk 0:00:11.2]} 44. a6 {[%clk 0:00:12.8]} 44...
Kxh7 {[%clk 0:00:10.5]} 45. Rb7 {[%clk 0:00:12]} 45... Ra8 {[%clk 0:00:10.3]}
46. a7 {[%clk 0:00:11.7]} 46... Bd4 {[%clk 0:00:10.7]} 47. Rf5 {[%clk
0:00:07.1]} 47... Kg6 {[%clk 0:00:10.4]} 48. Ra5 {[%clk 0:00:06.3]} 48... Ne6
{[%clk 0:00:08.8]} 49. Rd7 {[%clk 0:00:04.8]} 49... Be3 {[%clk 0:00:08.2]} 50.
Kb7 {[%clk 0:00:04.5]} 50... Rxa7+ {[%clk 0:00:07.2]} 51. Rxa7 {[%clk
0:00:04.6]} 51... Bxa7 {[%clk 0:00:08.1]} 52. Kxa7 {[%clk 0:00:04.9]} 52... f5
{[%clk 0:00:08.9]} 53. Kb6 {[%clk 0:00:03.7]} 53... f4 {[%clk 0:00:09]} 54. Rd3
{[%clk 0:00:03.1]} 54... Kf5 {[%clk 0:00:09]} 55. c4 {[%clk 0:00:02.8]} 55...
Ke4 {[%clk 0:00:09.5]} 56. Rd6 {[%clk 0:00:02.4]} 56... Nd4 {[%clk 0:00:07.7]}
57. c5 {[%clk 0:00:01.8]} 57... f3 {[%clk 0:00:07.9]} 58. Rf6 {[%clk 0:00:00.6]}
58... Nf5 {[%clk 0:00:06.9]} 0-1

[Event "Late-Titled-Tuesday-Blitz-May-14-2024"]
[Site "Chess.com"]
[Date "2024.05.14"]
[Round "10"]
[White "SpeedofLight0"]
[Black "Durarbayli"]
[Result "1-0"]
[WhiteElo "3027"]
[BlackElo "2942"]
[TimeControl "180+1"]
[EndTime "15:55:18 PDT"]
[Termination "SpeedofLight0 won by checkmate"]

1. d4 {[%clk 0:03:00.9]} 1... Nf6 {[%clk 0:02:58.7]} 2. Nc3 {[%clk 0:03:01]}
2... d5 {[%clk 0:02:58.5]} 3. Bf4 {[%clk 0:03:01.5]} 3... c5 {[%clk 0:02:59.1]}
4. e3 {[%clk 0:03:01.8]} 4... cxd4 {[%clk 0:02:58.7]} 5. exd4 {[%clk 0:03:02.7]}
5... a6 {[%clk 0:02:58.5]} 6. Nf3 {[%clk 0:03:03]} 6... Bg4 {[%clk 0:02:58.3]}
7. h3 {[%clk 0:03:01.4]} 7... Bxf3 {[%clk 0:02:58.3]} 8. Qxf3 {[%clk 0:03:02.3]}
8... Nc6 {[%clk 0:02:57.5]} 9. O-O-O {[%clk 0:03:02.7]} 9... e6 {[%clk
0:02:54.3]} 10. g4 {[%clk 0:02:59.6]} 10... Bb4 {[%clk 0:02:45.8]} 11. g5 {[%clk
0:02:58]} 11... Nd7 {[%clk 0:02:44.5]} 12. a3 {[%clk 0:02:43.2]} 12... Be7
{[%clk 0:02:43.5]} 13. h4 {[%clk 0:02:42.2]} 13... b5 {[%clk 0:02:39.1]} 14. b4
{[%clk 0:02:13.4]} 14... a5 {[%clk 0:01:38.2]} 15. Bxb5 {[%clk 0:02:06.6]} 15...
axb4 {[%clk 0:01:32.9]} 16. Bxc6 {[%clk 0:01:35.4]} 16... Rxa3 {[%clk
0:01:32.7]} 17. Rd3 {[%clk 0:01:34.6]} 17... bxc3 {[%clk 0:01:22.5]} 18. Rxc3
{[%clk 0:01:34.4]} 18... Ra1+ {[%clk 0:01:18.2]} 19. Kb2 {[%clk 0:01:31]} 19...
Rxh1 {[%clk 0:01:11.1]} 20. Qxh1 {[%clk 0:01:31.9]} 20... O-O {[%clk 0:01:02.3]}
21. Rb3 {[%clk 0:01:29.4]} 21... Nb6 {[%clk 0:00:59.4]} 22. Kc1 {[%clk 0:01:23]}
22... Nc4 {[%clk 0:00:56.4]} 23. Qe1 {[%clk 0:01:14.5]} 23... Bd6 {[%clk
0:00:56.4]} 24. Bd2 {[%clk 0:00:57]} 24... Qc7 {[%clk 0:00:45.4]} 25. Bb5 {[%clk
0:00:55.7]} 25... Ra8 {[%clk 0:00:38.2]} 26. Bc3 {[%clk 0:00:56.2]} 26... Ba3+
{[%clk 0:00:20.7]} 27. Kd1 {[%clk 0:00:55.3]} 27... Qf4 {[%clk 0:00:21.2]} 28.
Bxc4 {[%clk 0:00:43.8]} 28... dxc4 {[%clk 0:00:17.2]} 29. Rb1 {[%clk 0:00:27.3]}
29... Qxh4 {[%clk 0:00:17.3]} 30. Ra1 {[%clk 0:00:21.4]} 30... Qg4+ {[%clk
0:00:13.7]} 31. Qe2 {[%clk 0:00:20.9]} 31... Qg1+ {[%clk 0:00:12.8]} 32. Be1
{[%clk 0:00:20.5]} 32... Qxg5 {[%clk 0:00:10.8]} 33. Qf3 {[%clk 0:00:20.7]}
33... Qd5 {[%clk 0:00:09.9]} 34. Rxa3 {[%clk 0:00:19.7]} 34... Qxd4+ {[%clk
0:00:10.3]} 35. Ke2 {[%clk 0:00:18.6]} 35... Rd8 {[%clk 0:00:10.7]} 36. Kf1
{[%clk 0:00:13.9]} 36... h6 {[%clk 0:00:10.6]} 37. Re3 {[%clk 0:00:11.6]} 37...
Rd5 {[%clk 0:00:09]} 38. Re4 {[%clk 0:00:11.2]} 38... Qa1 {[%clk 0:00:06.7]} 39.
Rxc4 {[%clk 0:00:10.4]} 39... Rf5 {[%clk 0:00:06.6]} 40. Qd3 {[%clk 0:00:09.3]}
40... Qa8 {[%clk 0:00:05.3]} 41. Rh4 {[%clk 0:00:04.3]} 41... h5 {[%clk
0:00:02.8]} 42. Qe4 {[%clk 0:00:04.4]} 42... Qa6+ {[%clk 0:00:02]} 43. Qe2
{[%clk 0:00:04.8]} 43... Qc6 {[%clk 0:00:01.9]} 44. c3 {[%clk 0:00:03.6]} 44...
g6 {[%clk 0:00:01.1]} 45. Bd2 {[%clk 0:00:03.8]} 45... Qa8 {[%clk 0:00:00.5]}
46. Kg1 {[%clk 0:00:04.1]} 46... Qc6 {[%clk 0:00:00.9]} 47. Re4 {[%clk
0:00:03.5]} 47... Rd5 {[%clk 0:00:01.4]} 48. Be1 {[%clk 0:00:03.1]} 48... Qd7
{[%clk 0:00:01.9]} 49. c4 {[%clk 0:00:03.5]} 49... Rd1 {[%clk 0:00:02.2]} 50.
Kg2 {[%clk 0:00:03.3]} 50... Rd4 {[%clk 0:00:01.7]} 51. c5 {[%clk 0:00:02.6]}
51... Rd5 {[%clk 0:00:01.8]} 52. Rc4 {[%clk 0:00:02.2]} 52... Qc6 {[%clk
0:00:02.4]} 53. Qf3 {[%clk 0:00:02.7]} 53... f5 {[%clk 0:00:02.6]} 54. Kf1
{[%clk 0:00:03]} 54... e5 {[%clk 0:00:03.1]} 55. Bc3 {[%clk 0:00:02.9]} 55... e4
{[%clk 0:00:02.5]} 56. Qe2 {[%clk 0:00:03.3]} 56... Rd3 {[%clk 0:00:03.1]} 57.
Qb2 {[%clk 0:00:03.2]} 57... Kf7 {[%clk 0:00:03.6]} 58. Qb6 {[%clk 0:00:03.2]}
58... Qd5 {[%clk 0:00:01.5]} 59. Qf6+ {[%clk 0:00:03.5]} 59... Ke8 {[%clk
0:00:01.9]} 60. Qxg6+ {[%clk 0:00:04.1]} 60... Kd7 {[%clk 0:00:02]} 61. c6+
{[%clk 0:00:04.6]} 61... Kc8 {[%clk 0:00:02.6]} 62. Qe8+ {[%clk 0:00:04.5]}
62... Kc7 {[%clk 0:00:02.9]} 63. Qe7+ {[%clk 0:00:05]} 63... Kc8 {[%clk
0:00:03]} 64. Qb7+ {[%clk 0:00:05.2]} 64... Kd8 {[%clk 0:00:03.6]} 65. Bf6+
{[%clk 0:00:05.7]} 65... Ke8 {[%clk 0:00:03.7]} 66. Qe7# {[%clk 0:00:06.6]} 1-0

[Event "Late-Titled-Tuesday-Blitz-May-14-2024"]
[Site "Chess.com"]
[Date "2024.05.14"]
[Round "10"]
[White "egnfanclub"]
[Black "lluiss"]
[Result "1/2-1/2"]
[WhiteElo "2363"]
[BlackElo "2234"]
[TimeControl "180+1"]
[EndTime "15:55:19 PDT"]
[Termination "Game drawn by stalemate"]

1. e4 {[%clk 0:03:00.9]} 1... c5 {[%clk 0:02:59.3]} 2. Nc3 {[%clk 0:03:00.2]}
2... d6 {[%clk 0:02:59.2]} 3. f4 {[%clk 0:03:00.8]} 3... g6 {[%clk 0:02:58.3]}
4. Nf3 {[%clk 0:03:00.2]} 4... Bg7 {[%clk 0:02:58.3]} 5. Bb5+ {[%clk 0:02:58.4]}
5... Bd7 {[%clk 0:02:57.8]} 6. Bc4 {[%clk 0:02:58.7]} 6... Nc6 {[%clk
0:02:55.2]} 7. d3 {[%clk 0:02:58.4]} 7... e6 {[%clk 0:02:55.3]} 8. O-O {[%clk
0:02:58.8]} 8... Nge7 {[%clk 0:02:55.2]} 9. Qe1 {[%clk 0:02:56.9]} 9... h6
{[%clk 0:02:55.1]} 10. Bb3 {[%clk 0:02:48.6]} 10... Nd4 {[%clk 0:02:50.6]} 11.
Nxd4 {[%clk 0:02:48.2]} 11... Bxd4+ {[%clk 0:02:44.7]} 12. Kh1 {[%clk
0:02:48.1]} 12... Bg7 {[%clk 0:02:44.8]} 13. a4 {[%clk 0:02:27.9]} 13... O-O
{[%clk 0:02:23.5]} 14. Qh4 {[%clk 0:02:14.6]} 14... Nc6 {[%clk 0:02:22.7]} 15.
Qh3 {[%clk 0:02:15]} 15... Nd4 {[%clk 0:02:21.7]} 16. f5 {[%clk 0:02:15.5]}
16... exf5 {[%clk 0:02:10]} 17. Bxh6 {[%clk 0:02:14.4]} 17... fxe4 {[%clk
0:02:09.9]} 18. Qe3 {[%clk 0:01:59.8]} 18... Nxb3 {[%clk 0:01:21.2]} 19. cxb3
{[%clk 0:01:56.1]} 19... exd3 {[%clk 0:01:21.4]} 20. Bxg7 {[%clk 0:01:51.1]}
20... Kxg7 {[%clk 0:01:20.8]} 21. Qxd3 {[%clk 0:01:50.8]} 21... Bf5 {[%clk
0:01:15.7]} 22. Qg3 {[%clk 0:01:48.8]} 22... Qd7 {[%clk 0:00:53.7]} 23. Rad1
{[%clk 0:01:46.6]} 23... Rad8 {[%clk 0:00:53.1]} 24. Nd5 {[%clk 0:01:29.9]}
24... Rfe8 {[%clk 0:00:35]} 25. Qc3+ {[%clk 0:01:28.6]} 25... Re5 {[%clk
0:00:35.1]} 26. Ne3 {[%clk 0:01:23]} 26... Kg8 {[%clk 0:00:33.1]} 27. Nc4 {[%clk
0:01:15.1]} 27... Re6 {[%clk 0:00:22.3]} 28. Ne3 {[%clk 0:01:06]} 28... Re5
{[%clk 0:00:21.6]} 29. Nc4 {[%clk 0:00:42.2]} 29... Re6 {[%clk 0:00:20.8]} 30.
h3 {[%clk 0:00:39]} 30... Rde8 {[%clk 0:00:20.9]} 31. Qg3 {[%clk 0:00:32.2]}
31... Re2 {[%clk 0:00:15.9]} 32. Nxd6 {[%clk 0:00:28.6]} 32... R8e3 {[%clk
0:00:14.1]} 33. Nxf5 {[%clk 0:00:25.8]} 33... Rxg3 {[%clk 0:00:13.3]} 34. Rxd7
{[%clk 0:00:21.4]} 34... gxf5 {[%clk 0:00:13.5]} 35. Rxf5 {[%clk 0:00:20]} 35...
Rgxg2 {[%clk 0:00:13.5]} 36. Rfxf7 {[%clk 0:00:19.4]} 36... Rh2+ {[%clk
0:00:13.2]} 37. Kg1 {[%clk 0:00:19.9]} 37... Rxh3 {[%clk 0:00:13]} 38. Rg7+
{[%clk 0:00:18.9]} 38... Kh8 {[%clk 0:00:12.1]} 39. Rxb7 {[%clk 0:00:19.3]}
39... Re8 {[%clk 0:00:09.3]} 40. Rxa7 {[%clk 0:00:18.4]} 40... Rxb3 {[%clk
0:00:09.3]} 41. Rgb7 {[%clk 0:00:17.5]} 41... Rxb7 {[%clk 0:00:08.4]} 42. Rxb7
{[%clk 0:00:18.4]} 42... Ra8 {[%clk 0:00:08.3]} 43. Rc7 {[%clk 0:00:16.6]} 43...
Rxa4 {[%clk 0:00:08.2]} 44. Rxc5 {[%clk 0:00:17]} 44... Rb4 {[%clk 0:00:08.3]}
45. Rc2 {[%clk 0:00:17.5]} 45... Kg7 {[%clk 0:00:08.6]} 46. Rf2 {[%clk
0:00:17.1]} 46... Rb6 {[%clk 0:00:06.7]} 47. Kf1 {[%clk 0:00:17.6]} 47... Rf6
{[%clk 0:00:06.6]} 48. Rxf6 {[%clk 0:00:16.2]} 48... Kxf6 {[%clk 0:00:06.7]} 49.
Ke2 {[%clk 0:00:17.1]} 49... Ke6 {[%clk 0:00:05]} 50. Kd3 {[%clk 0:00:18]} 50...
Kd5 {[%clk 0:00:05.2]} 51. Kc3 {[%clk 0:00:18]} 51... Kc5 {[%clk 0:00:05.3]} 52.
Kb3 {[%clk 0:00:18.1]} 52... Kb5 {[%clk 0:00:05.3]} 53. Kc3 {[%clk 0:00:18.5]}
53... Kc5 {[%clk 0:00:05.2]} 54. b3 {[%clk 0:00:18.9]} 54... Kb5 {[%clk
0:00:04.8]} 55. b4 {[%clk 0:00:19.5]} 55... Kb6 {[%clk 0:00:03.6]} 56. Kc4
{[%clk 0:00:20.4]} 56... Kc6 {[%clk 0:00:03.8]} 57. b5+ {[%clk 0:00:21]} 57...
Kb6 {[%clk 0:00:03.9]} 58. Kb4 {[%clk 0:00:21.9]} 58... Kb7 {[%clk 0:00:04.1]}
59. Ka3 {[%clk 0:00:22.3]} 59... Kb6 {[%clk 0:00:03.7]} 60. Ka4 {[%clk
0:00:22.8]} 60... Kb7 {[%clk 0:00:03.3]} 61. Ka5 {[%clk 0:00:23.7]} 61... Ka7
{[%clk 0:00:03.5]} 62. Kb4 {[%clk 0:00:24.6]} 62... Kb6 {[%clk 0:00:03.7]} 63.
Kc4 {[%clk 0:00:25.5]} 63... Kb7 {[%clk 0:00:03.8]} 64. Kd5 {[%clk 0:00:26.1]}
64... Kb6 {[%clk 0:00:03.2]} 65. Kc4 {[%clk 0:00:26.7]} 65... Kb7 {[%clk
0:00:03.5]} 66. Kc5 {[%clk 0:00:27.6]} 66... Kc7 {[%clk 0:00:03.6]} 67. b6+
{[%clk 0:00:27.5]} 67... Kb7 {[%clk 0:00:03.8]} 68. Kb5 {[%clk 0:00:27.9]} 68...
Kb8 {[%clk 0:00:03.9]} 69. Kc6 {[%clk 0:00:28.4]} 69... Kc8 {[%clk 0:00:03.6]}
70. b7+ {[%clk 0:00:28.5]} 70... Kb8 {[%clk 0:00:03.8]} 71. Kb6 {[%clk
0:00:29.1]} 1/2-1/2

[Event "Late-Titled-Tuesday-Blitz-May-14-2024"]
[Site "Chess.com"]
[Date "2024.05.14"]
[Round "10"]
[White "geordie_derraugh"]
[Black "NCchamp"]
[Result "1-0"]
[WhiteElo "2427"]
[BlackElo "2306"]
[TimeControl "180+1"]
[EndTime "15:55:27 PDT"]
[Termination "geordie_derraugh won on time"]

1. e4 {[%clk 0:02:57.7]} 1... c6 {[%clk 0:02:58.6]} 2. c4 {[%clk 0:02:55.5]}
2... d5 {[%clk 0:02:59.5]} 3. exd5 {[%clk 0:02:56.1]} 3... cxd5 {[%clk
0:02:59.8]} 4. cxd5 {[%clk 0:02:57]} 4... Nf6 {[%clk 0:02:59.1]} 5. Nc3 {[%clk
0:02:56.9]} 5... g6 {[%clk 0:02:54.6]} 6. Bc4 {[%clk 0:02:56.2]} 6... Bg7 {[%clk
0:02:54.7]} 7. Nge2 {[%clk 0:02:56.2]} 7... O-O {[%clk 0:02:55]} 8. a4 {[%clk
0:02:56.1]} 8... a5 {[%clk 0:02:52.8]} 9. O-O {[%clk 0:02:55.5]} 9... Nbd7
{[%clk 0:02:53.3]} 10. Qb3 {[%clk 0:02:55.4]} 10... Nc5 {[%clk 0:02:47.5]} 11.
Qa2 {[%clk 0:02:55.4]} 11... b6 {[%clk 0:02:44.7]} 12. d4 {[%clk 0:02:51.4]}
12... Na6 {[%clk 0:02:44.2]} 13. Qb3 {[%clk 0:02:48.9]} 13... Nb4 {[%clk
0:02:43.4]} 14. Bg5 {[%clk 0:02:40.3]} 14... Bb7 {[%clk 0:02:39.6]} 15. Bxf6
{[%clk 0:02:39.5]} 15... Bxf6 {[%clk 0:02:40.5]} 16. Rfd1 {[%clk 0:02:38.1]}
16... Qd7 {[%clk 0:02:24.2]} 17. Ng3 {[%clk 0:02:28.1]} 17... Rad8 {[%clk
0:02:20.1]} 18. Bb5 {[%clk 0:02:17.7]} 18... Qc7 {[%clk 0:02:10.9]} 19. Nge4
{[%clk 0:02:07.8]} 19... Nxd5 {[%clk 0:01:54.3]} 20. Nxd5 {[%clk 0:02:06.4]}
20... Bxd5 {[%clk 0:01:52.2]} 21. Nxf6+ {[%clk 0:02:06.7]} 21... exf6 {[%clk
0:01:51.7]} 22. Qd3 {[%clk 0:01:59.8]} 22... Rc8 {[%clk 0:01:38.2]} 23. Rd2
{[%clk 0:01:42.6]} 23... f5 {[%clk 0:01:26.9]} 24. Re1 {[%clk 0:01:25]} 24...
Rfd8 {[%clk 0:01:25.3]} 25. Qa3 {[%clk 0:01:21.7]} 25... Qf4 {[%clk 0:01:15.8]}
26. Qe3 {[%clk 0:01:03.8]} 26... Qxe3 {[%clk 0:00:54.7]} 27. fxe3 {[%clk
0:01:04.7]} 27... Rc7 {[%clk 0:00:48.3]} 28. Be2 {[%clk 0:01:04.4]} 28... Rdc8
{[%clk 0:00:45.5]} 29. Bf3 {[%clk 0:01:03]} 29... Bb3 {[%clk 0:00:32.8]} 30. d5
{[%clk 0:01:03.1]} 30... Bxa4 {[%clk 0:00:33.1]} 31. d6 {[%clk 0:01:03.7]} 31...
Rd7 {[%clk 0:00:32.8]} 32. Rd4 {[%clk 0:01:02.6]} 32... Bb5 {[%clk 0:00:29.8]}
33. g4 {[%clk 0:00:54.4]} 33... Rcd8 {[%clk 0:00:29.1]} 34. Red1 {[%clk
0:00:52]} 34... Kg7 {[%clk 0:00:26.9]} 35. gxf5 {[%clk 0:00:51.6]} 35... gxf5
{[%clk 0:00:26.9]} 36. Kf2 {[%clk 0:00:49.9]} 36... Kf6 {[%clk 0:00:27.3]} 37.
Rh4 {[%clk 0:00:45.3]} 37... Ke5 {[%clk 0:00:20.8]} 38. Rd5+ {[%clk 0:00:44.1]}
38... Ke6 {[%clk 0:00:19.4]} 39. Rxb5 {[%clk 0:00:44.3]} 39... Rxd6 {[%clk
0:00:17.7]} 40. Rxh7 {[%clk 0:00:43.4]} 40... Rd2+ {[%clk 0:00:17.1]} 41. Kg3
{[%clk 0:00:39.3]} 41... R8d6 {[%clk 0:00:16]} 42. Rh6+ {[%clk 0:00:37.4]} 42...
f6 {[%clk 0:00:16.4]} 43. e4 {[%clk 0:00:33.3]} 43... fxe4 {[%clk 0:00:14.7]}
44. Bxe4 {[%clk 0:00:28.2]} 44... Re2 {[%clk 0:00:13.2]} 45. Bf5+ {[%clk
0:00:25.3]} 45... Kf7 {[%clk 0:00:13.5]} 46. Rh7+ {[%clk 0:00:21]} 46... Kg8
{[%clk 0:00:11.2]} 47. Rb7 {[%clk 0:00:21.5]} 47... Re3+ {[%clk 0:00:06.1]} 48.
Kf2 {[%clk 0:00:19.1]} 48... Re5 {[%clk 0:00:02.6]} 49. Rxe5 {[%clk 0:00:17.7]}
49... fxe5 {[%clk 0:00:03.5]} 50. Be4 {[%clk 0:00:16.5]} 50... Rd4 {[%clk
0:00:03.4]} 51. Ke3 {[%clk 0:00:16.6]} 51... Rb4 {[%clk 0:00:03.4]} 52. Bd5+
{[%clk 0:00:16.3]} 52... Kf8 {[%clk 0:00:02.9]} 53. b3 {[%clk 0:00:17]} 53... b5
{[%clk 0:00:02]} 54. Kd2 {[%clk 0:00:15.2]} 54... a4 {[%clk 0:00:02.3]} 55. bxa4
{[%clk 0:00:15.6]} 55... Rxa4 {[%clk 0:00:02.9]} 56. Rxb5 {[%clk 0:00:15.4]}
56... Rh4 {[%clk 0:00:02.3]} 57. Ke3 {[%clk 0:00:10.2]} 57... Rxh2 {[%clk
0:00:02.1]} 58. Ke4 {[%clk 0:00:10.5]} 58... Rh5 {[%clk 0:00:01.8]} 59. Rb7
{[%clk 0:00:09.3]} 59... Ke8 {[%clk 0:00:01.9]} 60. Bf7+ {[%clk 0:00:09.3]}
60... Kd8 {[%clk 0:00:02.2]} 61. Bxh5 {[%clk 0:00:10.2]} 1-0